Business Unit,Business Code,Service Code,Service Label,Organisational Unit,Expenditure,Net Payments,Transaction Number,Payment Date,Supplier ID,Supplier Name
North West Leicestershire District Council,31UH,HRAHM,Housing,HRA Housing Management,Community Initiatives,550.00,1293186,01/10/2014,A035594,The East Midlands TP Forum
North West Leicestershire District Council,31UH,HLC,Leisure Centres,Hermitage Leisure Centre,Electricity,"2,635.73",1293214,01/10/2014,A030266,Southern Electric
North West Leicestershire District Council,31UH,CULTYP,Leisure & Culture,Cultural Services Children & YoungPeople,Extended Services,"3,050.00",1293215,01/10/2014,A000780,Homestart (N.W. Leics)
North West Leicestershire District Council,31UH,CULTYP,Leisure & Culture,Cultural Services Children & YoungPeople,Extended Services,"4,548.00",1293216,01/10/2014,A000780,Homestart (N.W. Leics)
North West Leicestershire District Council,31UH,NACN,Neighbourhoods & Communities,N & C Neighbourhoods,Positive Activities for Young People Exp,"3,000.00",1293221,01/10/2014,A040478,Worth-it Projects (social enterprise)
North West Leicestershire District Council,31UH,EEHL,Environmental Health,Environmental Health & Licensing,Grants,"3,350.00",1293232,01/10/2014,A027561,MJM Plumbing & Heating Services (Midland
North West Leicestershire District Council,31UH,HPLC,Leisure Centres,Hood Park Leisure Centre,Telephone Charge / Rental,624.39,1293264,01/10/2014,A035373,Virgin Media Business
North West Leicestershire District Council,31UH,HLC,Leisure Centres,Hermitage Leisure Centre,Water Charges (Metered),673.00,1293266,01/10/2014,A001468,Severn Trent Water Limited
North West Leicestershire District Council,31UH,HPLC,Leisure Centres,Hood Park Leisure Centre,Telephone Charge / Rental,624.39,1293268,01/10/2014,A035373,Virgin Media Business
North West Leicestershire District Council,31UH,LDLS,Legal & Democratic,Legal Services,Other Miscellaneous Expenses,"9,904.80",1293366,01/10/2014,A028974,SCI Print Limited
North West Leicestershire District Council,31UH,LDLS,Legal & Democratic,Legal Services,Other Miscellaneous Expenses,"1,319.51",1293367,01/10/2014,A028974,SCI Print Limited
North West Leicestershire District Council,31UH,ECP,Planning & Development,Environment Community Planning,External Legal Fees & Advice,"2,493.70",1293370,01/10/2014,A034291,Valuation Office Agency
North West Leicestershire District Council,31UH,ECP,Planning & Development,Environment Community Planning,External Legal Fees & Advice,"4,499.25",1293371,01/10/2014,A034291,Valuation Office Agency
North West Leicestershire District Council,31UH,HRAHRM,Housing Repairs,HRA Housing Repairs & Maintenance,Training Expenses,"2,739.00",1293374,01/10/2014,A000373,Stephenson College
North West Leicestershire District Council,31UH,ECCTV,Planning & Development,Environment - Town Centre/CCTV,Insurance related fees,"1,290.98",1293380,01/10/2014,A038748,Zurich Assurance Ltd
North West Leicestershire District Council,31UH,ECCTV,Planning & Development,Environment - Town Centre/CCTV,Electricity,"1,058.74",1293382,01/10/2014,A030266,Southern Electric
North West Leicestershire District Council,31UH,ECP,Planning & Development,Environment Community Planning,External Legal Fees & Advice,"4,737.00",1293387,01/10/2014,A034251,DTZ Debenham Tie Leung Ltd
North West Leicestershire District Council,31UH,CULTYP,Leisure & Culture,Cultural Services Children & YoungPeople,RESPECT,"1,000.00",1293405,01/10/2014,A030553,Sir John Moore Foundation
North West Leicestershire District Council,31UH,HRAHRM,Housing Repairs,HRA Housing Repairs & Maintenance,Consultants Fees,"1,000.00",1293474,08/10/2014,A036053,Cope Safety Management Limited
North West Leicestershire District Council,31UH,HRAHRM,Housing Repairs,HRA Housing Repairs & Maintenance,Consultants Fees,"1,000.00",1293476,08/10/2014,A036053,Cope Safety Management Limited
North West Leicestershire District Council,31UH,EEHL,Environmental Health,Environmental Health & Licensing,Grants,"4,060.88",1293579,08/10/2014,A038668,Adaptions
North West Leicestershire District Council,31UH,EPP,Planning & Development,Environment Planning Policy,Planning Application - Charges,770.00,1293598,08/10/2014,A041794,Peveril Homes
North West Leicestershire District Council,31UH,HR,Corporate Director,Human Resources,Items To Be Leased,"3,830.44",1293608,08/10/2014,A039405,Inchcape Fleet Solutions
North West Leicestershire District Council,31UH,EES,Environmental Health,Environmental Services,Grants,"2,971.54",1293640,08/10/2014,A001092,John Merison BMC
North West Leicestershire District Council,31UH,HRAHRM,Housing Repairs,HRA Housing Repairs & Maintenance,Consultants Fees,"2,544.61",1293666,08/10/2014,A039980,Kier Services Maintenance East Ltd
North West Leicestershire District Council,31UH,HRAHRM,Housing Repairs,HRA Housing Repairs & Maintenance,Decent Homes,"4,659.41",1293668,08/10/2014,A039980,Kier Services Maintenance East Ltd
North West Leicestershire District Council,31UH,ENOT,Street Management,Environment Transport,Transport Costs - Tyres,"1,576.30",1293676,08/10/2014,A033268,Bandvulc Tyres Ltd
North West Leicestershire District Council,31UH,HRAHRM,Housing Repairs,HRA Housing Repairs & Maintenance,Decent Homes,"28,991.70",1293684,08/10/2014,A039980,Kier Services Maintenance East Ltd
North West Leicestershire District Council,31UH,HRAHRM,Housing Repairs,HRA Housing Repairs & Maintenance,Electrical Certification and training,952.00,1293696,08/10/2014,A026251,NICEIC Sales
North West Leicestershire District Council,31UH,CULTYP,Leisure & Culture,Cultural Services Children & YoungPeople,RESPECT,"1,000.00",1293767,08/10/2014,A034793,Castle Rock High School
North West Leicestershire District Council,31UH,HRAHRM,Housing Repairs,HRA Housing Repairs & Maintenance,Contract Payments (Dws) Ext,790.00,1293768,08/10/2014,A022373,Cresswell Property Surveys
North West Leicestershire District Council,31UH,HRAHRM,Housing Repairs,HRA Housing Repairs & Maintenance,Contract Payments (Dws) Ext,732.00,1293769,08/10/2014,A022373,Cresswell Property Surveys
North West Leicestershire District Council,31UH,HRAHRM,Housing Repairs,HRA Housing Repairs & Maintenance,Contract Payments (Dws) Ext,872.00,1293770,08/10/2014,A022373,Cresswell Property Surveys
North West Leicestershire District Council,31UH,HRAHRM,Housing Repairs,HRA Housing Repairs & Maintenance,Decent Homes,"583,625.09",1293771,08/10/2014,A039980,Kier Services Maintenance East Ltd
North West Leicestershire District Council,31UH,PROPCL,Property Services,Property Commercial Lettings,Telephones,643.93,1293776,08/10/2014,A000233,British Telecommunications P
North West Leicestershire District Council,31UH,ICT,Information Technology,ICT Services,Admin Equipment - Hire/Rental,"1,187.88",1293791,08/10/2014,A000233,British Telecommunications P
North West Leicestershire District Council,31UH,NACN,Neighbourhoods & Communities,N & C Neighbourhoods,Grants,"4,905.00",1293810,15/10/2014,A000780,Homestart (N.W. Leics)
North West Leicestershire District Council,31UH,ICT,Information Technology,ICT Services,Telephone Charge / Rental,"5,949.96",1293812,15/10/2014,A008908,Virgin Media Business
North West Leicestershire District Council,31UH,LDLS,Legal & Democratic,Legal Services,Professional Fees,"1,408.00",1293827,15/10/2014,A039211,The Law Society
North West Leicestershire District Council,31UH,PROPFM,Property Services,Property Facilities Management,Electricity,"4,095.24",1293835,15/10/2014,A030266,Southern Electric
North West Leicestershire District Council,31UH,HRAHM,Housing,HRA Housing Management,Legal & Professional Services,"2,160.00",1293855,09/10/2014,A033948,HMCTS
North West Leicestershire District Council,31UH,HRAHM,Housing,HRA Housing Management,Water Charges (Metered),"4,634.89",1293856,09/10/2014,A001468,Severn Trent Water Limited
North West Leicestershire District Council,31UH,HLC,Leisure Centres,Hermitage Leisure Centre,Water Charges (Metered),"1,573.36",1293879,15/10/2014,A001468,Severn Trent Water Limited
North West Leicestershire District Council,31UH,EEHL,Environmental Health,Environmental Health & Licensing,Grants,"5,595.67",1293882,15/10/2014,A031587,Sandaland Properties (Measham) Ltd
North West Leicestershire District Council,31UH,EEHL,Environmental Health,Environmental Health & Licensing,Stray Dog Service,"1,372.14",1293887,15/10/2014,A000385,College Garth Boarding Kenn
North West Leicestershire District Council,31UH,LDLS,Legal & Democratic,Legal Services,Legal & Professional Services,600.00,1293888,15/10/2014,A000251,Browne Jacobson
North West Leicestershire District Council,31UH,LCM,Leisure & Culture,Leisure & Cult Mangt,Grant - Mantle Arts,"3,500.00",1293961,15/10/2014,A001039,Mantle Community Arts Limit
North West Leicestershire District Council,31UH,LCM,Leisure & Culture,Leisure & Cult Mangt,Shopmobility,"2,000.00",1293969,15/10/2014,A029258,North West Leicestershire Shopmobility
North West Leicestershire District Council,31UH,CULTIC,Leisure & Culture,Cultural Services TIC,Theatre Tickets,"1,116.90",1294128,15/10/2014,A021686,Ashby Dramatic Society
North West Leicestershire District Council,31UH,ENOT,Street Management,Environment Transport,Licences - Road Fund Licence,840.00,1294144,15/10/2014,A008559,Post Office Limited
North West Leicestershire District Council,31UH,EES,Environmental Health,Environmental Services,Private Owners,"6,381.20",1294147,15/10/2014,A001421,Oaklands Hotels Ltd T/A The Royal Hotel
North West Leicestershire District Council,31UH,HLC,Leisure Centres,Hermitage Leisure Centre,Electricity,"2,540.63",1294242,22/10/2014,A030266,Southern Electric
North West Leicestershire District Council,31UH,CULTYP,Leisure & Culture,Cultural Services Children & YoungPeople,Extended Services,"7,497.60",1294244,22/10/2014,A000780,Homestart (N.W. Leics)
North West Leicestershire District Council,31UH,HRAPBS,Housing,HRA Performance & Business Support,Insurance - Tenants Contributions,"9,290.96",1294247,22/10/2014,A037657,Jardine Lloyd Thompson
North West Leicestershire District Council,31UH,LDLS,Legal & Democratic,Legal Services,External Legal Fees & Advice,"3,827.50",1294248,22/10/2014,A041538,Shakespeares
North West Leicestershire District Council,31UH,CULTYP,Leisure & Culture,Cultural Services Children & YoungPeople,Extended Services,"3,074.00",1294255,22/10/2014,A011149,Lcc Warren Hills Community
North West Leicestershire District Council,31UH,CULTYP,Leisure & Culture,Cultural Services Children & YoungPeople,Extended Services,"4,185.00",1294256,22/10/2014,A035950,Kimbles Music & Movement Ltd
North West Leicestershire District Council,31UH,CULTYP,Leisure & Culture,Cultural Services Children & YoungPeople,Extended Services,"9,121.50",1294257,22/10/2014,A035950,Kimbles Music & Movement Ltd
North West Leicestershire District Council,31UH,CULTYP,Leisure & Culture,Cultural Services Children & YoungPeople,Extended Services,"1,798.20",1294258,22/10/2014,A000780,Homestart (N.W. Leics)
North West Leicestershire District Council,31UH,CULTYP,Leisure & Culture,Cultural Services Children & YoungPeople,Extended Services,"7,600.00",1294259,22/10/2014,A000780,Homestart (N.W. Leics)
North West Leicestershire District Council,31UH,LDLS,Legal & Democratic,Legal Services,External Legal Fees & Advice,"1,735.70",1294260,22/10/2014,A041538,Shakespeares
North West Leicestershire District Council,31UH,HPLC,Leisure Centres,Hood Park Leisure Centre,Water Charges (Metered),"1,104.85",1294286,22/10/2014,A001468,Severn Trent Water Limited
North West Leicestershire District Council,31UH,HPLC,Leisure Centres,Hood Park Leisure Centre,Electricity,"1,396.76",1294288,22/10/2014,A030266,Southern Electric
North West Leicestershire District Council,31UH,ECP,Planning & Development,Environment Community Planning,External Legal Fees & Advice,"3,680.00",1294359,22/10/2014,A041191,GL Hearn
North West Leicestershire District Council,31UH,ECP,Planning & Development,Environment Community Planning,Salaries - Gross Pay,"4,134.36",1294361,22/10/2014,A041846,Nottingham Consultants Ltd
North West Leicestershire District Council,31UH,ECP,Planning & Development,Environment Community Planning,External Legal Fees & Advice,"1,000.00",1294375,22/10/2014,A041847,Walker Morris
North West Leicestershire District Council,31UH,PROPCL,Property Services,Property Commercial Lettings,Water Charges (Metered),"1,714.75",1294402,22/10/2014,A001468,Severn Trent Water Limited
North West Leicestershire District Council,31UH,ECCTV,Planning & Development,Environment - Town Centre/CCTV,Electricity,985.50,1294516,29/10/2014,A030266,Southern Electric
North West Leicestershire District Council,31UH,NACCS,Neighbourhoods & Communities,N & C Community Safety,Grants,"5,390.00",1294512,29/10/2014,A041115,Age Concern Leics & Rutland
North West Leicestershire District Council,31UH,ICT,Information Technology,ICT Services,Equipment Operating Leases,"1,167.59",1294471,23/10/2014,A001301,The Danwood Group Ltd
North West Leicestershire District Council,31UH,ECP,Planning & Development,Environment Community Planning,External Legal Fees & Advice,"1,038.00",1294812,29/10/2014,A013765,Stansgate Planning Consulta
North West Leicestershire District Council,31UH,HRAHRM,Housing Repairs,HRA Housing Repairs & Maintenance,Electrical Certification and training,760.00,1294754,29/10/2014,A026251,NICEIC Sales
North West Leicestershire District Council,31UH,CULTYP,Leisure & Culture,Cultural Services Children & YoungPeople,Extended Services,"14,000.00",1294830,29/10/2014,A040958,Baby Dolly
North West Leicestershire District Council,31UH,ESS,Street Management,Environment - Street Scene,Sewerage & Environmental,995.38,1294831,29/10/2014,A001468,Severn Trent Water Limited
North West Leicestershire District Council,31UH,ECCTV,Planning & Development,Environment - Town Centre/CCTV,Sewerage & Environmental,"5,832.80",1294835,29/10/2014,A001468,Severn Trent Water Limited
North West Leicestershire District Council,31UH,ECCTV,Planning & Development,Environment - Town Centre/CCTV,Sewerage & Environmental,583.69,1294836,29/10/2014,A001468,Severn Trent Water Limited
North West Leicestershire District Council,31UH,EES,Environmental Health,Environmental Services,Electricity,"2,136.67",1294838,29/10/2014,A028766,E.ON Energy Electricity Income Account
North West Leicestershire District Council,31UH,ECP,Planning & Development,Environment Community Planning,External Legal Fees & Advice,"12,979.39",1294813,29/10/2014,A013765,Stansgate Planning Consulta
North West Leicestershire District Council,31UH,PROPCL,Property Services,Property Commercial Lettings,Rent Deposit Refunds,"3,714.19",1294852,29/10/2014,A041783,Yes Energy Solutions
North West Leicestershire District Council,31UH,CS,Communications,Corporate - Customer Services,Postages,"5,000.00",1294857,29/10/2014,A000079,Neopost Limited
North West Leicestershire District Council,31UH,HRAHRM,Housing Repairs,HRA Housing Repairs & Maintenance,House Cleaning and Removals,555.17,1293301,01/10/2014,A031086,Premier Waste and Recycling
North West Leicestershire District Council,31UH,HRAHRM,Housing Repairs,HRA Housing Repairs & Maintenance,Glazing repairs,"4,256.58",1293342,01/10/2014,A036741,SBP Limited (Trading as Plastal & Permad
North West Leicestershire District Council,31UH,HRAHRM,Housing Repairs,HRA Housing Repairs & Maintenance,Gas Servicing,"1,350.08",1293395,01/10/2014,A033342,J Tomlinson Ltd
North West Leicestershire District Council,31UH,HRAHRM,Housing Repairs,HRA Housing Repairs & Maintenance,Gas Servicing,"2,302.26",1293976,15/10/2014,A033342,J Tomlinson Ltd
North West Leicestershire District Council,31UH,HRAHRM,Housing Repairs,HRA Housing Repairs & Maintenance,Gas Servicing,"2,144.89",1293977,15/10/2014,A033342,J Tomlinson Ltd
North West Leicestershire District Council,31UH,HRAHRM,Housing Repairs,HRA Housing Repairs & Maintenance,Gas Servicing,965.07,1293978,15/10/2014,A033342,J Tomlinson Ltd
North West Leicestershire District Council,31UH,HRAHRM,Housing Repairs,HRA Housing Repairs & Maintenance,Gas Servicing,965.07,1293979,15/10/2014,A033342,J Tomlinson Ltd
North West Leicestershire District Council,31UH,HRAHRM,Housing Repairs,HRA Housing Repairs & Maintenance,Solid Fuel Supplies,675.00,1293983,15/10/2014,A035675,Elite Sweep Service
North West Leicestershire District Council,31UH,HRAHRM,Housing Repairs,HRA Housing Repairs & Maintenance,Gas Servicing,760.08,1293392,01/10/2014,A033342,J Tomlinson Ltd
North West Leicestershire District Council,31UH,HRAHRM,Housing Repairs,HRA Housing Repairs & Maintenance,Gas Servicing,"5,037.30",1293393,01/10/2014,A033342,J Tomlinson Ltd
North West Leicestershire District Council,31UH,HRAHRM,Housing Repairs,HRA Housing Repairs & Maintenance,Gas Servicing,"1,192.24",1293394,01/10/2014,A033342,J Tomlinson Ltd
North West Leicestershire District Council,31UH,HRAHRM,Housing Repairs,HRA Housing Repairs & Maintenance,Gas Servicing,"2,745.16",1293398,01/10/2014,A033342,J Tomlinson Ltd
North West Leicestershire District Council,31UH,HRAHRM,Housing Repairs,HRA Housing Repairs & Maintenance,Solid Fuel Supplies,845.00,1293985,15/10/2014,A035675,Elite Sweep Service
North West Leicestershire District Council,31UH,HRAHRM,Housing Repairs,HRA Housing Repairs & Maintenance,Boiler - Gas,622.33,1293988,15/10/2014,A026237,British Gas Trading Limited
North West Leicestershire District Council,31UH,HRAHRM,Housing Repairs,HRA Housing Repairs & Maintenance,Housing repairs,"3,942.25",1293990,15/10/2014,A031787,Laker BMS Ltd
North West Leicestershire District Council,31UH,HRAHRM,Housing Repairs,HRA Housing Repairs & Maintenance,Housing repairs,"2,516.88",1293992,15/10/2014,A031787,Laker BMS Ltd
North West Leicestershire District Council,31UH,HRAHRM,Housing Repairs,HRA Housing Repairs & Maintenance,Housing repairs,841.46,1294006,15/10/2014,A031787,Laker BMS Ltd
North West Leicestershire District Council,31UH,HRAHRM,Housing Repairs,HRA Housing Repairs & Maintenance,Housing repairs,"2,999.78",1293998,15/10/2014,A031787,Laker BMS Ltd
North West Leicestershire District Council,31UH,HRAHRM,Housing Repairs,HRA Housing Repairs & Maintenance,Housing repairs,938.40,1293999,15/10/2014,A031787,Laker BMS Ltd
North West Leicestershire District Council,31UH,HRAHRM,Housing Repairs,HRA Housing Repairs & Maintenance,Housing repairs,621.00,1294018,15/10/2014,A031787,Laker BMS Ltd
North West Leicestershire District Council,31UH,HRAHRM,Housing Repairs,HRA Housing Repairs & Maintenance,Housing repairs,"3,404.00",1294020,15/10/2014,A031787,Laker BMS Ltd
North West Leicestershire District Council,31UH,HRAHRM,Housing Repairs,HRA Housing Repairs & Maintenance,Housing repairs,"2,584.28",1294021,15/10/2014,A031787,Laker BMS Ltd
North West Leicestershire District Council,31UH,HRAHRM,Housing Repairs,HRA Housing Repairs & Maintenance,Gas Servicing,586.50,1294577,29/10/2014,A033342,J Tomlinson Ltd
North West Leicestershire District Council,31UH,HRAHRM,Housing Repairs,HRA Housing Repairs & Maintenance,Gas Servicing,599.09,1294600,29/10/2014,A033342,J Tomlinson Ltd
North West Leicestershire District Council,31UH,HRAHRM,Housing Repairs,HRA Housing Repairs & Maintenance,Gas Servicing,"2,602.00",1294603,29/10/2014,A033342,J Tomlinson Ltd
North West Leicestershire District Council,31UH,HRAHRM,Housing Repairs,HRA Housing Repairs & Maintenance,Contract Payments (Dws) Ext,790.00,1294739,29/10/2014,A022373,Cresswell Property Surveys
North West Leicestershire District Council,31UH,HRAHRM,Housing Repairs,HRA Housing Repairs & Maintenance,Contract Payments (Dws) Ext,732.00,1294740,29/10/2014,A022373,Cresswell Property Surveys
North West Leicestershire District Council,31UH,HRAHRM,Housing Repairs,HRA Housing Repairs & Maintenance,Contract Payments (Dws) Ext,872.00,1294741,29/10/2014,A022373,Cresswell Property Surveys
North West Leicestershire District Council,31UH,HRAHRM,Housing Repairs,HRA Housing Repairs & Maintenance,Concrete repairs,"1,187.50",1294747,29/10/2014,A041348,Onsite Specialist Maintenance Ltd
North West Leicestershire District Council,31UH,HRAHRM,Housing Repairs,HRA Housing Repairs & Maintenance,Housing repairs,"1,185.86",1294752,29/10/2014,A031787,Laker BMS Ltd
North West Leicestershire District Council,31UH,HRAHRM,Housing Repairs,HRA Housing Repairs & Maintenance,Housing repairs,"1,631.69",1294753,29/10/2014,A031787,Laker BMS Ltd
North West Leicestershire District Council,31UH,EDC,Planning & Development,Environment - Development Control,External Legal Fees & Advice,"12,705.00",1293172,01/10/2014,A041578,APEM Limited
North West Leicestershire District Council,31UH,CHEX,Chief Exec,Chief Executive,External Legal Fees & Advice,"2,520.00",1293174,01/10/2014,A041694,Edwards & Edwards Consultancy Ltd
North West Leicestershire District Council,31UH,ESS,Street Management,Environment - Street Scene,Subscriptions,950.00,1293176,01/10/2014,A039987,Mallard Consultancy Ltd
North West Leicestershire District Council,31UH,HRAPBS,Housing,HRA Performance & Business Support,Mobile Working Software Solution,"10,450.00",1293200,01/10/2014,A041321,Oneserve Ltd
North West Leicestershire District Council,31UH,HRAPBS,Housing,HRA Performance & Business Support,Mobile Working Software Solution,"4,000.00",1293208,01/10/2014,A041321,Oneserve Ltd
North West Leicestershire District Council,31UH,ENOT,Street Management,Environment Transport,Repairs - Parts,595.89,1293222,01/10/2014,A001647,Terberg Matec Uk
North West Leicestershire District Council,31UH,HLC,Leisure Centres,Hermitage Leisure Centre,Measham LC Lifestyle DD,"2,062.51",1293233,01/10/2014,A027454,Measham Leisure Centre
North West Leicestershire District Council,31UH,HLC,Leisure Centres,Hermitage Leisure Centre,Royalties,"3,255.59",1293184,01/10/2014,A001293,The Performing Right Society
North West Leicestershire District Council,31UH,ENOT,Street Management,Environment Transport,Transport Costs - Tyres,810.00,1293247,01/10/2014,A035175,Malvern Tyres
North West Leicestershire District Council,31UH,HLC,Leisure Centres,Hermitage Leisure Centre,Summer/School Holiday Activities,910.41,1293286,01/10/2014,A041189,Holme Pierrepont Leisure Trust
North West Leicestershire District Council,31UH,HR,Corporate Director,Human Resources,Expenditure against earmarked reserve,"2,125.00",1293347,01/10/2014,A039508,Learning Pool Ltd
North West Leicestershire District Council,31UH,HRAPBS,Housing,HRA Performance & Business Support,Training Expenses,962.50,1293352,01/10/2014,A040435,Kaplan Financial
North West Leicestershire District Council,31UH,PROPFM,Property Services,Property Facilities Management,General Repairs,"1,819.80",1293356,01/10/2014,A030887,T Denman & Sons (Melton Mowbray) Ltd
North West Leicestershire District Council,31UH,HRAOPS,Housing,HRA Older Persons Service,Alarm System Telephones,"2,560.00",1293383,01/10/2014,A001701,Tunstall Healthcare (UK) Limited
North West Leicestershire District Council,31UH,ENOP,Street Management,Environment Parks,External Materials,"1,642.79",1293240,01/10/2014,A041601,Green Garden
North West Leicestershire District Council,31UH,HLC,Leisure Centres,Hermitage Leisure Centre,Clothing,772.00,1290120,01/10/2014,A001386,Revolution
North West Leicestershire District Council,31UH,HRAPBS,Housing,HRA Performance & Business Support,Consultants Fees,950.00,1292475,01/10/2014,A002968,Capita Business Services Ltd
North West Leicestershire District Council,31UH,ENOT,Street Management,Environment Transport,Transport Costs - Engine Oil,"1,540.30",1292845,01/10/2014,A028311,Freedom Lubricants Ltd
North West Leicestershire District Council,31UH,NACCS,Neighbourhoods & Communities,N & C Community Safety,Expenditure against earmarked reserve,"6,000.00",1293399,01/10/2014,A040191,Personal Development Point (PDP)
North West Leicestershire District Council,31UH,HLC,Leisure Centres,Hermitage Leisure Centre,Operational Equipment,668.42,1293461,01/10/2014,A000969,J P Lennard Ltd
North West Leicestershire District Council,31UH,ICT,Information Technology,ICT Services,Expenditure against earmarked reserve,"9,765.00",1293193,01/10/2014,A029908,Foursys Ltd
North West Leicestershire District Council,31UH,AUDIT,Legal & Democratic,Audit Services,National Fraud Initiative,"2,200.00",1293197,01/10/2014,A000110,Audit Commission
North West Leicestershire District Council,31UH,CDCC,Leisure Centres,Castle Donington Community College,Agency Staff,"6,600.42",1293292,01/10/2014,A000302,Castle Donington College
North West Leicestershire District Council,31UH,CDCC,Leisure Centres,Castle Donington Community College,Agency Staff,"8,801.15",1293293,01/10/2014,A000302,Castle Donington College
North West Leicestershire District Council,31UH,CDCC,Leisure Centres,Castle Donington Community College,Agency Staff,"10,453.40",1293294,01/10/2014,A000302,Castle Donington College
North West Leicestershire District Council,31UH,PROPCL,Property Services,Property Commercial Lettings,Postages,"2,429.79",1293463,01/10/2014,A008204,Purchase Power
North West Leicestershire District Council,31UH,HLBC,Leisure Centres,Hermitage Bar & Catering,Bar Provisions,"3,551.11",1293547,08/10/2014,A039915,LWC - Birmingham
North West Leicestershire District Council,31UH,HLC,Leisure Centres,Hermitage Leisure Centre,Specialised Clothing,718.00,1293551,08/10/2014,A041457,Instant Marquees Ltd
North West Leicestershire District Council,31UH,HLC,Leisure Centres,Hermitage Leisure Centre,Other Services,540.00,1293564,08/10/2014,A037299,Security Alert UK
North West Leicestershire District Council,31UH,ENOT,Street Management,Environment Transport,Repairs - Parts,586.12,1293573,08/10/2014,A039355,Johnston Sweepers Ltd
North West Leicestershire District Council,31UH,ENOWM,Street Management,Environment Waste Management,Service Improvements,"1,790.00",1293464,08/10/2014,A041243,Whitespace Work Software Ltd
North West Leicestershire District Council,31UH,ENOT,Street Management,Environment Transport,Repairs - Parts,717.50,1293511,08/10/2014,A037762,Driveline Systems Limited
North West Leicestershire District Council,31UH,HR,Corporate Director,Human Resources,Purchases,525.00,1293513,08/10/2014,A028625,Specsavers Corporate Eyecare
North West Leicestershire District Council,31UH,ENOT,Street Management,Environment Transport,Repairs - Parts,"1,783.52",1293525,08/10/2014,A001647,Terberg Matec Uk
North West Leicestershire District Council,31UH,HLC,Leisure Centres,Hermitage Leisure Centre,Service Contracts,723.00,1290076,08/10/2014,A037677,Sterling Hydrotech Limited
North West Leicestershire District Council,31UH,HRATP,Housing,HRA Tenant Participation,Training Expenses,802.00,1293603,08/10/2014,A037241,Taylor Bloxham Ltd
North West Leicestershire District Council,31UH,HLC,Leisure Centres,Hermitage Leisure Centre,Swimming Badges,"6,523.80",1293538,08/10/2014,A041600,Franklins International Ltd
North West Leicestershire District Council,31UH,HPLC,Leisure Centres,Hood Park Leisure Centre,Water Treatment,768.98,1293616,08/10/2014,A001591,Stowlin Ltd
North West Leicestershire District Council,31UH,ENOT,Street Management,Environment Transport,General Materials,989.41,1293628,08/10/2014,A017624,BPI Recycled Products
North West Leicestershire District Council,31UH,PROPCL,Property Services,Property Commercial Lettings,Internal Decorations,552.50,1293675,08/10/2014,A003371,Urban Planters Leics
North West Leicestershire District Council,31UH,NACCS,Neighbourhoods & Communities,N & C Community Safety,BSC PROJECT AREA - VIOLENCE,"11,250.00",1293762,08/10/2014,A032786,Living Without Abuse
North West Leicestershire District Council,31UH,ICT,Information Technology,ICT Services,Admin Equipment - Maintenance,"2,638.80",1293774,08/10/2014,A038473,Cable & Wireless Worldwide
North West Leicestershire District Council,31UH,EEHL,Environmental Health,Environmental Health & Licensing,Agency Staff,629.00,1293775,08/10/2014,A031571,HBHC Synergy Ltd
North West Leicestershire District Council,31UH,ENOT,Street Management,Environment Transport,Purchases,758.03,1293784,08/10/2014,A037391,Emo Oil Limited
North West Leicestershire District Council,31UH,ECCTV,Planning & Development,Environment - Town Centre/CCTV,Maintenance Contract,"3,020.72",1293614,08/10/2014,A035493,Quadrant Security Group Limited
North West Leicestershire District Council,31UH,HLC,Leisure Centres,Hermitage Leisure Centre,Water Treatment,"1,046.93",1293623,08/10/2014,A001591,Stowlin Ltd
North West Leicestershire District Council,31UH,ECCTV,Planning & Development,Environment - Town Centre/CCTV,Agency Staff,"4,028.99",1293677,08/10/2014,A038132,Premier Security Services (Midlands) Lim
North West Leicestershire District Council,31UH,ENOT,Street Management,Environment Transport,Purchases,"16,699.16",1293785,15/10/2014,A040946,Hall Fuels (Division of Watson Petroleum
North West Leicestershire District Council,31UH,ENOP,Street Management,Environment Parks,External Materials,547.05,1293807,15/10/2014,A013933,Grangewood Fencing Supplies Limited
North West Leicestershire District Council,31UH,HLC,Leisure Centres,Hermitage Leisure Centre,Asset Protection,"6,439.50",1293811,15/10/2014,A001092,John Merison BMC
North West Leicestershire District Council,31UH,ENOT,Street Management,Environment Transport,Repairs - Parts,760.47,1293823,15/10/2014,A000625,Ford & Slater Group Ltd
North West Leicestershire District Council,31UH,ENOP,Street Management,Environment Parks,Operational Equipment - Purchases,700.00,1293836,15/10/2014,A001392,Rigby Taylor Limited
North West Leicestershire District Council,31UH,CHEX,Chief Exec,Chief Executive,Interim Support,600.00,1293848,15/10/2014,A040743,Janice Milsom
North West Leicestershire District Council,31UH,CHEX,Chief Exec,Chief Executive,External Legal Fees & Advice,"2,529.15",1293849,15/10/2014,A041332,Sharp Planning Plus Ltd
North West Leicestershire District Council,31UH,ENOT,Street Management,Environment Transport,Items To Be Leased,"15,809.40",1293814,15/10/2014,A039232,Polar Ford Barnsley
North West Leicestershire District Council,31UH,HLC,Leisure Centres,Hermitage Leisure Centre,Publicity & Promotion,510.00,1293869,15/10/2014,A037245,Wyndeham Gait Limited
North West Leicestershire District Council,31UH,HRAPBS,Housing,HRA Performance & Business Support,Contract Payments (Dws) Ext,"12,900.00",1293866,15/10/2014,A041811,Prescient Power
North West Leicestershire District Council,31UH,HLC,Leisure Centres,Hermitage Leisure Centre,Measham LC Lifestyle DD,"1,954.16",1293870,15/10/2014,A027454,Measham Leisure Centre
North West Leicestershire District Council,31UH,PROPFM,Property Services,Property Facilities Management,Contract Payments (Other) Ext,"1,000.00",1293883,15/10/2014,A035772,Wm Saunders Partnership LLP
North West Leicestershire District Council,31UH,ENOP,Street Management,Environment Parks,External Materials,"3,366.00",1293890,15/10/2014,A034582,Barcham Tree PLC
North West Leicestershire District Council,31UH,ENOP,Street Management,Environment Parks,External Materials,"5,641.14",1293891,15/10/2014,A039715,Baginton Nurseries Ltd
North West Leicestershire District Council,31UH,HRAHRM,Housing Repairs,HRA Housing Repairs & Maintenance,Protective Clothing,929.51,1293880,15/10/2014,A009933,Westbury Industrial Supplies
North West Leicestershire District Council,31UH,HLC,Leisure Centres,Hermitage Leisure Centre,Protective Clothing,717.20,1293912,15/10/2014,A030776,Keltic
North West Leicestershire District Council,31UH,ENOT,Street Management,Environment Transport,Repairs - Parts,770.00,1293959,15/10/2014,A034141,Steel Stock ( burton - On - Trent ) Ltd
North West Leicestershire District Council,31UH,PROPFM,Property Services,Property Facilities Management,Purchases,"1,293.50",1293965,15/10/2014,A033342,J Tomlinson Ltd
North West Leicestershire District Council,31UH,PROPCL,Property Services,Property Commercial Lettings,General Repairs,"1,201.25",1293966,15/10/2014,A033342,J Tomlinson Ltd
North West Leicestershire District Council,31UH,PROPCL,Property Services,Property Commercial Lettings,General Repairs,"2,146.25",1293967,15/10/2014,A033342,J Tomlinson Ltd
North West Leicestershire District Council,31UH,CDCC,Leisure Centres,Castle Donington Community College,Expenditure against earmarked reserve,"2,127.00",1294094,15/10/2014,A028733,Airquee Ltd
North West Leicestershire District Council,31UH,PROPCL,Property Services,Property Commercial Lettings,General Repairs,692.00,1293840,15/10/2014,A000129,Gleam Team Services Limited
North West Leicestershire District Council,31UH,ENOP,Street Management,Environment Parks,Sustainability,520.61,1294125,15/10/2014,A041601,Green Garden
North West Leicestershire District Council,31UH,EDC,Planning & Development,Environment - Development Control,Urban Design/Our Place,"1,187.50",1294142,15/10/2014,A036525,Three One Zero Design
North West Leicestershire District Council,31UH,ENOT,Street Management,Environment Transport,Repairs - Parts,896.76,1294140,15/10/2014,A035291,Mertrux
North West Leicestershire District Council,31UH,EEHL,Environmental Health,Environmental Health & Licensing,Vet Inspection,571.45,1294160,22/10/2014,A033670,Eville And Jones
North West Leicestershire District Council,31UH,ENOT,Street Management,Environment Transport,Repairs - Parts,578.84,1294183,22/10/2014,A001647,Terberg Matec Uk
North West Leicestershire District Council,31UH,ENOT,Street Management,Environment Transport,Repairs - Parts,576.00,1294250,22/10/2014,A001106,Midland Hydraulic Services
North West Leicestershire District Council,31UH,HPBC,Leisure Centres,Hood Park Bar and Catering,Vending Machine Provisions,572.40,1294292,22/10/2014,A001264,Palmer Harvey Mclane Ltd
North West Leicestershire District Council,31UH,ICT,Information Technology,ICT Services,Machinery & Equipment,"5,073.75",1294161,22/10/2014,A030931,Firmstep
North West Leicestershire District Council,31UH,ICT,Information Technology,ICT Services,Machinery & Equipment,"12,000.00",1294165,22/10/2014,A040872,NDL Software Limited
North West Leicestershire District Council,31UH,PROPCL,Property Services,Property Commercial Lettings,Operational Equipment,875.00,1294333,22/10/2014,A037981,LTT Vending Limited
North West Leicestershire District Council,31UH,ENOP,Street Management,Environment Parks,Operational Equipment - Purchases,912.69,1294335,22/10/2014,A017624,BPI Recycled Products
North West Leicestershire District Council,31UH,ICT,Information Technology,ICT Services,Consumable Materials,636.27,1294343,22/10/2014,A038178,Antalis Limited
North West Leicestershire District Council,31UH,HS,Housing Strategy,Community - Housing Strategy,Other Services,700.00,1294368,22/10/2014,A027377,Leicester City Hotel
North West Leicestershire District Council,31UH,ENOP,Street Management,Environment Parks,Operational Equipment - Purchases,"1,028.98",1294448,22/10/2014,A001789,Wicksteed Leisure Limited
North West Leicestershire District Council,31UH,ICT,Information Technology,ICT Services,Machinery & Equipment,"1,500.00",1294449,22/10/2014,A034157,Idox Software Ltd
North West Leicestershire District Council,31UH,CULTEV,Leisure & Culture,Cultural Services Arts & Events,Other Miscellaneous Expenses,524.95,1294450,22/10/2014,A041791,Festive Lights Ltd
North West Leicestershire District Council,31UH,PROPFM,Property Services,Property Facilities Management,Contract Payments (Other) Ext,"87,070.43",1293941,22/10/2014,A016357,Dura-Sport (Leisure Care) Ltd
North West Leicestershire District Council,31UH,HRAHRM,Housing Repairs,HRA Housing Repairs & Maintenance,repairs to smoke damaged property,"3,500.00",1293957,22/10/2014,A031408,L Warrington T/A Second 2 None
North West Leicestershire District Council,31UH,PROPCL,Property Services,Property Commercial Lettings,General Repairs,654.00,1294164,22/10/2014,A030887,T Denman & Sons (Melton Mowbray) Ltd
North West Leicestershire District Council,31UH,HRAPBS,Housing,HRA Performance & Business Support,Machinery & Equipment,730.00,1294169,22/10/2014,A041206,Soundsorba Ltd
North West Leicestershire District Council,31UH,PROPFM,Property Services,Property Facilities Management,Purchases,"9,869.20",1294331,22/10/2014,A033342,J Tomlinson Ltd
North West Leicestershire District Council,31UH,ENOP,Street Management,Environment Parks,Asset Protection,"5,983.57",1294344,22/10/2014,A033342,J Tomlinson Ltd
North West Leicestershire District Council,31UH,HR,Corporate Director,Human Resources,Purchases,"4,137.00",1294367,22/10/2014,A035521,PES Limited
North West Leicestershire District Council,31UH,HR,Corporate Director,Human Resources,Interim Support,"2,114.90",1294460,22/10/2014,A033121,Libby Carter Limited
North West Leicestershire District Council,31UH,HR,Corporate Director,Human Resources,Interim Support,898.80,1294461,22/10/2014,A033121,Libby Carter Limited
North West Leicestershire District Council,31UH,PROPCL,Property Services,Property Commercial Lettings,Contract Cleaning,531.49,1294486,29/10/2014,A003037,Coalville Cleaning Services
North West Leicestershire District Council,31UH,ICT,Information Technology,ICT Services,Machinery & Equipment,"2,850.00",1294488,29/10/2014,A034157,Idox Software Ltd
North West Leicestershire District Council,31UH,ICT,Information Technology,ICT Services,Machinery & Equipment,"4,500.00",1294489,29/10/2014,A034157,Idox Software Ltd
North West Leicestershire District Council,31UH,ICT,Information Technology,ICT Services,Machinery & Equipment,"4,250.00",1294490,29/10/2014,A034157,Idox Software Ltd
North West Leicestershire District Council,31UH,ENOT,Street Management,Environment Transport,Purchases,634.06,1294501,29/10/2014,A009933,Westbury Industrial Supplies
North West Leicestershire District Council,31UH,HRAOPS,Housing,HRA Older Persons Service,Alarm System Telephones,"3,840.00",1294504,29/10/2014,A001701,Tunstall Healthcare (UK) Limited
North West Leicestershire District Council,31UH,HLBC,Leisure Centres,Hermitage Bar & Catering,Bar Provisions,523.35,1294532,29/10/2014,A039915,LWC - Birmingham
North West Leicestershire District Council,31UH,HLBC,Leisure Centres,Hermitage Bar & Catering,Catering Provisions,558.52,1294540,29/10/2014,A001264,Palmer Harvey Mclane Ltd
North West Leicestershire District Council,31UH,ICT,Information Technology,ICT Services,Admin Equipment - Maintenance,"2,250.00",1293673,29/10/2014,A034753,ANS Group Plc
North West Leicestershire District Council,31UH,PROPFM,Property Services,Property Facilities Management,Operational Equipment - Purchases,"1,810.00",1293907,29/10/2014,A041560,James Toon Stonemasons
North West Leicestershire District Council,31UH,HLC,Leisure Centres,Hermitage Leisure Centre,Service Contracts,600.00,1294095,29/10/2014,A041763,Seating Support Services Ltd
North West Leicestershire District Council,31UH,ICT,Information Technology,ICT Services,Admin Equipment - Maintenance,"1,824.58",1294190,29/10/2014,A032826,Freedom Communications (UK) Ltd
North West Leicestershire District Council,31UH,ENOP,Street Management,Environment Parks,Operational Equipment - Purchases,"1,270.00",1294300,29/10/2014,A041200,Kilworth Machinery Ltd
North West Leicestershire District Council,31UH,ICT,Information Technology,ICT Services,Administrative Equipment,663.00,1294325,29/10/2014,A000470,Dell Computer Corporation L
North West Leicestershire District Council,31UH,ENOT,Street Management,Environment Transport,Repairs - Parts,793.20,1294484,29/10/2014,A039355,Johnston Sweepers Ltd
North West Leicestershire District Council,31UH,ENOP,Street Management,Environment Parks,Training Expenses,"1,225.00",1294548,29/10/2014,A029902,Public Sector Software Ltd
North West Leicestershire District Council,31UH,ENOT,Street Management,Environment Transport,Repairs - Parts,"2,197.12",1294550,29/10/2014,A029265,Danline International Ltd
North West Leicestershire District Council,31UH,ENOT,Street Management,Environment Transport,Items To Be Leased,"15,500.00",1294566,29/10/2014,A041659,K Irvine Plant UK Ltd
North West Leicestershire District Council,31UH,ICT,Information Technology,ICT Services,Admin Equipment - Maintenance,"3,000.00",1294619,29/10/2014,A039733,SSDP Corp Ltd c/o Syncsort Uk Limited
North West Leicestershire District Council,31UH,HR,Corporate Director,Human Resources,Personality Profiles,"4,100.00",1294775,29/10/2014,A001656,Thomas International Uk Ltd
North West Leicestershire District Council,31UH,ENOT,Street Management,Environment Transport,Non Insurance Damage,560.00,1294783,29/10/2014,A031849,Lee Wells Autobodies Ltd
North West Leicestershire District Council,31UH,ENOT,Street Management,Environment Transport,Transport Costs - Tyres,"4,360.00",1294791,29/10/2014,A033268,Bandvulc Tyres Ltd
North West Leicestershire District Council,31UH,ENOT,Street Management,Environment Transport,Repairs - Parts,"1,393.00",1294797,29/10/2014,A037762,Driveline Systems Limited
North West Leicestershire District Council,31UH,EPP,Planning & Development,Environment Planning Policy,Local Development Framework,"4,800.00",1294804,29/10/2014,A028258,Peter Brett Associates T/a Roger Tym & P
North West Leicestershire District Council,31UH,ICT,Information Technology,ICT Services,Expenditure against earmarked reserve,593.75,1294823,29/10/2014,A025151,Probrand Limited
North West Leicestershire District Council,31UH,EDC,Planning & Development,Environment - Development Control,Advertising,626.83,1294492,29/10/2014,A001395,Euro RSCG People T/A Havas People Ltd
North West Leicestershire District Council,31UH,EDC,Planning & Development,Environment - Development Control,Advertising,505.96,1294493,29/10/2014,A001395,Euro RSCG People T/A Havas People Ltd
North West Leicestershire District Council,31UH,EDC,Planning & Development,Environment - Development Control,Advertising,881.73,1294497,29/10/2014,A001395,Euro RSCG People T/A Havas People Ltd
North West Leicestershire District Council,31UH,HRAPBS,Housing,HRA Performance & Business Support,Expenditure against earmarked reserve,950.00,1293806,29/10/2014,A002968,Capita Business Services Ltd
North West Leicestershire District Council,31UH,HRAPBS,Housing,HRA Performance & Business Support,Software Licences,"1,695.00",1294794,29/10/2014,A034754,Customer Research Technology Ltd
